[Event "Titled Tuesday Blitz April 25 Late 2023"]
[White "Yeritsyan, Hayk"]
[Black "Bilych, Olexiy"]
[WhiteFideId "13307320"]
[BlackFideId "14156504"]
[WhiteElo "2241"]
[BlackElo "2320"]
[Result "0-1"]
[Round "03"]
[TimeControl "180+2"]
[Date "2023.04.25"]
[WhiteClock "0:00:10"]
[BlackClock "0:00:35"]

1. d4 {[%clk 0:03:00]}  d5 {[%clk 0:03:00]} 2. Nf3 {[%clk 0:03:01]}  Nf6 {[%clk 0:02:59]} 3. e3 {[%clk 0:03:02]}  Bf5 {[%clk 0:02:58]} 4. Bd3 {[%clk 0:03:02]}  e6 {[%clk 0:02:46]} 5. Bxf5 {[%clk 0:03:02]}  exf5 {[%clk 0:02:47]} 6. Qd3 {[%clk 0:03:02]}  g6 {[%clk 0:02:47]} 7. Qb5+ {[%clk 0:03:02]}  Nc6 {[%clk 0:02:35]} 8. Qxb7 {[%clk 0:03:03]}  Nb4 {[%clk 0:02:35]} 9. Qb5+ {[%clk 0:03:03]}  c6 {[%clk 0:02:33]} 10. Qa4 {[%clk 0:03:02]}  Qb6 {[%clk 0:02:20]} 11. a3 {[%clk 0:02:49]}  Na6 {[%clk 0:02:19]} 12. Ne5 {[%clk 0:02:45]}  Rc8 {[%clk 0:02:14]} 13. c4 {[%clk 0:02:46]}  Bg7 {[%clk 0:02:00]} 14. c5 {[%clk 0:02:45]}  Qb7 {[%clk 0:01:59]} 15. Nc3 {[%clk 0:02:42]}  O-O {[%clk 0:01:59]} 16. O-O {[%clk 0:02:39]}  Ne4 {[%clk 0:01:55]} 17. Nd3 {[%clk 0:02:36]}  Nc7 {[%clk 0:01:51]} 18. Qc2 {[%clk 0:02:24]}  Ne6 {[%clk 0:01:49]} 19. f3 {[%clk 0:02:17]}  Nf6 {[%clk 0:01:27]} 20. f4 {[%clk 0:02:13]}  Ne4 {[%clk 0:01:25]} 21. b4 {[%clk 0:02:09]}  Nxd4 {[%clk 0:01:24]} 22. exd4 {[%clk 0:02:01]}  Bxd4+ {[%clk 0:01:25]} 23. Kh1 {[%clk 0:02:00]}  Bxc3 {[%clk 0:01:24]} 24. Rb1 {[%clk 0:02:00]}  Qe7 {[%clk 0:01:23]} 25. Bb2 {[%clk 0:01:55]}  d4 {[%clk 0:01:20]} 26. Rbe1 {[%clk 0:01:53]}  Bxe1 {[%clk 0:01:20]} 27. Rxe1 {[%clk 0:01:52]}  Rcd8 {[%clk 0:01:17]} 28. Ne5 {[%clk 0:01:52]}  Qh4 {[%clk 0:01:13]} 29. Rf1 {[%clk 0:01:48]}  Ng3+ {[%clk 0:01:12]} 30. Kg1 {[%clk 0:01:46]}  Nxf1 {[%clk 0:01:12]} 31. Nf3 {[%clk 0:01:47]}  Ne3 {[%clk 0:01:10]} 32. Qe2 {[%clk 0:01:42]}  Rfe8 {[%clk 0:00:59]} 33. Nxh4 {[%clk 0:01:41]}  d3 {[%clk 0:00:53]} 34. Qd2 {[%clk 0:01:04]}  Nc4 {[%clk 0:00:52]} 35. Qc3 {[%clk 0:00:20]}  Nxb2 {[%clk 0:00:52]} 36. Nxf5 {[%clk 0:00:20]}  gxf5 {[%clk 0:00:43]} 37. Qf6 {[%clk 0:00:21]}  d2 {[%clk 0:00:37]} 38. Qg5+ {[%clk 0:00:21]}  Kf8 {[%clk 0:00:38]} 39. Qh6+ {[%clk 0:00:19]}  Ke7 {[%clk 0:00:37]} 40. Qg5+ {[%clk 0:00:19]}  Kd7 {[%clk 0:00:36]} 41. Qxf5+ {[%clk 0:00:19]}  Kc7 {[%clk 0:00:36]} 42. Qxf7+ {[%clk 0:00:14]}  Kb8 {[%clk 0:00:36]} 43. Qxh7 {[%clk 0:00:10]}  d1=Q+ {[%clk 0:00:35]} 0-1


[Site "https://www.chess.com"]

[Event "Titled Tuesday Blitz April 25 Late 2023"]
[White "Lamaze, Simon"]
[Black "Shapiro, Viktor"]
[WhiteFideId "36069264"]
[BlackFideId "4175700"]
[WhiteElo "2272"]
[BlackElo "2152"]
[Result "1-0"]
[Round "03"]
[TimeControl "180+2"]
[Date "2023.04.25"]
[WhiteClock "0:02:10"]
[BlackClock "0:01:12"]

1. e4 {[%clk 0:03:00]}  Nf6 {[%clk 0:02:59]} 2. e5 {[%clk 0:03:00]}  Nd5 {[%clk 0:03:00]} 3. c4 {[%clk 0:03:01]}  Nb6 {[%clk 0:03:00]} 4. d4 {[%clk 0:03:02]}  d6 {[%clk 0:03:01]} 5. exd6 {[%clk 0:03:03]}  cxd6 {[%clk 0:03:01]} 6. Nc3 {[%clk 0:03:02]}  g6 {[%clk 0:03:01]} 7. h3 {[%clk 0:03:02]}  Bg7 {[%clk 0:03:01]} 8. Nf3 {[%clk 0:02:57]}  O-O {[%clk 0:03:01]} 9. Be2 {[%clk 0:02:57]}  e5 {[%clk 0:03:01]} 10. dxe5 {[%clk 0:02:55]}  dxe5 {[%clk 0:03:01]} 11. Qxd8 {[%clk 0:02:56]}  Rxd8 {[%clk 0:03:01]} 12. c5 {[%clk 0:02:57]}  Nd5 {[%clk 0:02:58]} 13. Nxd5 {[%clk 0:02:56]}  Rxd5 {[%clk 0:02:58]} 14. Be3 {[%clk 0:02:57]}  Nc6 {[%clk 0:02:45]} 15. Bc4 {[%clk 0:02:56]}  Rd7 {[%clk 0:02:43]} 16. Rd1 {[%clk 0:02:50]}  Rxd1+ {[%clk 0:02:42]} 17. Kxd1 {[%clk 0:02:51]}  Bf5 {[%clk 0:02:37]} 18. Kc1 {[%clk 0:02:50]}  Rd8 {[%clk 0:02:35]} 19. a3 {[%clk 0:02:49]}  h6 {[%clk 0:02:34]} 20. Rd1 {[%clk 0:02:49]}  Rxd1+ {[%clk 0:02:34]} 21. Kxd1 {[%clk 0:02:50]}  e4 {[%clk 0:02:28]} 22. Nh4 {[%clk 0:02:50]}  Bxb2 {[%clk 0:02:27]} 23. a4 {[%clk 0:02:50]}  Kg7 {[%clk 0:02:19]} 24. Bd5 {[%clk 0:02:47]}  Nd8 {[%clk 0:02:07]} 25. g4 {[%clk 0:02:42]}  Bd7 {[%clk 0:02:07]} 26. a5 {[%clk 0:02:36]}  Bc6 {[%clk 0:02:07]} 27. Bc4 {[%clk 0:02:34]}  a6 {[%clk 0:02:04]} 28. Ng2 {[%clk 0:02:33]}  Bc3 {[%clk 0:02:03]} 29. Bd2 {[%clk 0:02:32]}  Bxd2 {[%clk 0:02:00]} 30. Kxd2 {[%clk 0:02:33]}  Kf6 {[%clk 0:01:57]} 31. Ke3 {[%clk 0:02:29]}  Ke5 {[%clk 0:01:57]} 32. Nf4 {[%clk 0:02:28]}  g5 {[%clk 0:01:46]} 33. Nh5 {[%clk 0:02:27]}  Bd5 {[%clk 0:01:38]} 34. Bxd5 {[%clk 0:02:22]}  Kxd5 {[%clk 0:01:38]} 35. Nf6+ {[%clk 0:02:23]}  Kxc5 {[%clk 0:01:38]} 36. Kxe4 {[%clk 0:02:23]}  Nc6 {[%clk 0:01:35]} 37. Ng8 {[%clk 0:02:23]}  Nxa5 {[%clk 0:01:34]} 38. Nxh6 {[%clk 0:02:24]}  b5 {[%clk 0:01:33]} 39. Nxf7 {[%clk 0:02:24]}  b4 {[%clk 0:01:34]} 40. Nxg5 {[%clk 0:02:24]}  b3 {[%clk 0:01:35]} 41. Kd3 {[%clk 0:02:24]}  Kb4 {[%clk 0:01:33]} 42. Ne4 {[%clk 0:02:24]}  Nc4 {[%clk 0:01:32]} 43. g5 {[%clk 0:02:21]}  Ne5+ {[%clk 0:01:32]} 44. Kd2 {[%clk 0:02:20]}  a5 {[%clk 0:01:30]} 45. f4 {[%clk 0:02:20]}  Ng6 {[%clk 0:01:30]} 46. f5 {[%clk 0:02:20]}  Nh4 {[%clk 0:01:29]} 47. f6 {[%clk 0:02:19]}  a4 {[%clk 0:01:28]} 48. f7 {[%clk 0:02:18]}  Ng6 {[%clk 0:01:28]} 49. h4 {[%clk 0:02:17]}  a3 {[%clk 0:01:29]} 50. h5 {[%clk 0:02:14]}  Nf8 {[%clk 0:01:29]} 51. Kc1 {[%clk 0:02:12]}  Ne6 {[%clk 0:01:14]} 52. g6 {[%clk 0:02:10]}  a2 {[%clk 0:01:12]} 53. Kb2 {[%clk 0:02:10]} 1-0


[Site "https://www.chess.com"]

[Event "Titled Tuesday Blitz April 25 Late 2023"]
[White "Womacka, Mathias"]
[Black "Aldokhin, Ivan"]
[WhiteFideId "4611390"]
[BlackFideId "24115720"]
[WhiteElo "2377"]
[BlackElo "2322"]
[Result "0-1"]
[Round "03"]
[TimeControl "180+2"]
[Date "2023.04.25"]
[WhiteClock "0:00:34"]
[BlackClock "0:00:07"]

1. e4 {[%clk 0:03:00]}  c5 {[%clk 0:02:53]} 2. Nf3 {[%clk 0:03:00]}  e6 {[%clk 0:02:53]} 3. d4 {[%clk 0:03:00]}  cxd4 {[%clk 0:02:54]} 4. Nxd4 {[%clk 0:03:01]}  a6 {[%clk 0:02:55]} 5. Bd3 {[%clk 0:03:00]}  Qc7 {[%clk 0:02:55]} 6. Qe2 {[%clk 0:02:59]}  Nf6 {[%clk 0:02:55]} 7. O-O {[%clk 0:02:56]}  d6 {[%clk 0:02:56]} 8. c4 {[%clk 0:02:55]}  g6 {[%clk 0:02:56]} 9. Nc3 {[%clk 0:02:51]}  Bg7 {[%clk 0:02:57]} 10. Nf3 {[%clk 0:02:51]}  Nc6 {[%clk 0:02:55]} 11. Rd1 {[%clk 0:02:48]}  Nd7 {[%clk 0:02:50]} 12. Bf4 {[%clk 0:02:46]}  Nce5 {[%clk 0:02:36]} 13. Rac1 {[%clk 0:02:42]}  O-O {[%clk 0:02:35]} 14. b3 {[%clk 0:02:40]}  b6 {[%clk 0:02:31]} 15. Bb1 {[%clk 0:02:39]}  Bb7 {[%clk 0:02:30]} 16. Nxe5 {[%clk 0:02:34]}  dxe5 {[%clk 0:02:02]} 17. Be3 {[%clk 0:02:33]}  f5 {[%clk 0:02:02]} 18. f3 {[%clk 0:02:33]}  Rfd8 {[%clk 0:01:28]} 19. Na4 {[%clk 0:02:20]}  Bc6 {[%clk 0:01:24]} 20. Nc3 {[%clk 0:02:09]}  f4 {[%clk 0:01:07]} 21. Bf2 {[%clk 0:02:07]}  Bf8 {[%clk 0:01:07]} 22. Nd5 {[%clk 0:01:26]}  exd5 {[%clk 0:01:03]} 23. cxd5 {[%clk 0:01:27]}  Bb5 {[%clk 0:01:01]} 24. Rxc7 {[%clk 0:01:15]}  Bxe2 {[%clk 0:01:00]} 25. Re1 {[%clk 0:01:10]}  Bb5 {[%clk 0:00:38]} 26. a4 {[%clk 0:01:11]}  Bd6 {[%clk 0:00:32]} 27. Rcc1 {[%clk 0:00:59]}  Bb4 {[%clk 0:00:32]} 28. axb5 {[%clk 0:00:55]}  Bxe1 {[%clk 0:00:31]} 29. Bxe1 {[%clk 0:00:55]}  axb5 {[%clk 0:00:27]} 30. Bd3 {[%clk 0:00:55]}  Nc5 {[%clk 0:00:14]} 31. Bxb5 {[%clk 0:00:52]}  Nxb3 {[%clk 0:00:14]} 32. Rb1 {[%clk 0:00:50]}  Nd4 {[%clk 0:00:07]} 33. Bc4 {[%clk 0:00:49]}  b5 {[%clk 0:00:06]} 34. Bxb5 {[%clk 0:00:49]}  Rab8 {[%clk 0:00:03]} 35. Bd3 {[%clk 0:00:48]}  Rxb1 {[%clk 0:00:04]} 36. Bxb1 {[%clk 0:00:49]}  Ra8 {[%clk 0:00:04]} 37. d6 {[%clk 0:00:43]}  Ra1 {[%clk 0:00:03]} 38. d7 {[%clk 0:00:42]}  Nc6 {[%clk 0:00:03]} 39. Ba5 {[%clk 0:00:34]}  Rxa5 {[%clk 0:00:03]} 40. Bd3 {[%clk 0:00:33]}  Kf8 {[%clk 0:00:03]} 41. Bc4 {[%clk 0:00:30]}  Ke7 {[%clk 0:00:03]} 42. Bd5 {[%clk 0:00:31]}  Nd4 {[%clk 0:00:02]} 43. Kf2 {[%clk 0:00:30]}  Kxd7 {[%clk 0:00:02]} 44. g3 {[%clk 0:00:31]}  Kd6 {[%clk 0:00:02]} 45. gxf4 {[%clk 0:00:31]}  exf4 {[%clk 0:00:03]} 46. h4 {[%clk 0:00:31]}  Ke5 {[%clk 0:00:04]} 47. h5 {[%clk 0:00:31]}  gxh5 {[%clk 0:00:04]} 48. Kg2 {[%clk 0:00:30]}  Ra3 {[%clk 0:00:05]} 49. Kh3 {[%clk 0:00:30]}  Rxf3+ {[%clk 0:00:06]} 50. Kh4 {[%clk 0:00:31]}  Rg3 {[%clk 0:00:06]} 51. Kxh5 {[%clk 0:00:32]}  f3 {[%clk 0:00:06]} 52. Kh6 {[%clk 0:00:33]}  f2 {[%clk 0:00:06]} 53. Kxh7 {[%clk 0:00:34]}  f1=Q {[%clk 0:00:07]} 0-1


[Site "https://www.chess.com"]

[Event "Titled Tuesday Blitz April 25 Late 2023"]
[White "Jovic, Stanoje"]
[Black "Prohaszka, Peter"]
[WhiteFideId "905020"]
[BlackFideId "726265"]
[WhiteElo "2236"]
[BlackElo "2626"]
[Result "0-1"]
[Round "03"]
[TimeControl "180+2"]
[Date "2023.04.25"]
[WhiteClock "0:00:07"]
[BlackClock "0:00:08"]

1. c4 {[%clk 0:03:00]}  e6 {[%clk 0:02:53]} 2. g3 {[%clk 0:03:00]}  d5 {[%clk 0:02:50]} 3. Bg2 {[%clk 0:03:01]}  Nf6 {[%clk 0:02:51]} 4. Nf3 {[%clk 0:03:01]}  dxc4 {[%clk 0:02:51]} 5. O-O {[%clk 0:03:00]}  a6 {[%clk 0:02:49]} 6. a4 {[%clk 0:03:00]}  Nc6 {[%clk 0:02:49]} 7. a5 {[%clk 0:03:01]}  Bb4 {[%clk 0:02:48]} 8. Ne5 {[%clk 0:03:00]}  Nxe5 {[%clk 0:02:40]} 9. Qa4+ {[%clk 0:02:59]}  Nc6 {[%clk 0:02:39]} 10. Bxc6+ {[%clk 0:02:58]}  bxc6 {[%clk 0:02:39]} 11. Qxb4 {[%clk 0:02:59]}  h5 {[%clk 0:02:27]} 12. Na3 {[%clk 0:02:52]}  h4 {[%clk 0:02:16]} 13. Nxc4 {[%clk 0:02:51]}  Qd5 {[%clk 0:02:07]} 14. Ne3 {[%clk 0:02:45]}  Qd6 {[%clk 0:01:50]} 15. Qc3 {[%clk 0:02:32]}  Rb8 {[%clk 0:01:21]} 16. b3 {[%clk 0:02:29]}  hxg3 {[%clk 0:01:01]} 17. fxg3 {[%clk 0:02:26]}  Rb5 {[%clk 0:00:57]} 18. Ba3 {[%clk 0:02:22]}  c5 {[%clk 0:00:43]} 19. Rac1 {[%clk 0:02:18]}  Bb7 {[%clk 0:00:41]} 20. Bxc5 {[%clk 0:02:04]}  Qc6 {[%clk 0:00:23]} 21. Rf3 {[%clk 0:02:03]}  Rh7 {[%clk 0:00:12]} 22. b4 {[%clk 0:01:51]}  Ne4 {[%clk 0:00:12]} 23. Qd3 {[%clk 0:01:32]}  f5 {[%clk 0:00:06]} 24. Ng2 {[%clk 0:01:17]}  Nxc5 {[%clk 0:00:06]} 25. Rxc5 {[%clk 0:01:02]}  Rxc5 {[%clk 0:00:07]} 26. bxc5 {[%clk 0:01:02]}  Qxc5+ {[%clk 0:00:08]} 27. Re3 {[%clk 0:01:02]}  Qc1+ {[%clk 0:00:07]} 28. Kf2 {[%clk 0:01:00]}  Rxh2 {[%clk 0:00:07]} 29. Rf3 {[%clk 0:01:00]}  Qc5+ {[%clk 0:00:06]} 30. e3 {[%clk 0:00:51]}  Qc6 {[%clk 0:00:05]} 31. e4 {[%clk 0:00:37]}  Qxe4 {[%clk 0:00:05]} 32. Qxe4 {[%clk 0:00:05]}  Bxe4 {[%clk 0:00:06]} 33. Rb3 {[%clk 0:00:05]}  Rxg2+ {[%clk 0:00:06]} 34. Ke1 {[%clk 0:00:05]}  Kd7 {[%clk 0:00:05]} 35. d3 {[%clk 0:00:05]}  Bd5 {[%clk 0:00:05]} 36. Rb8 {[%clk 0:00:03]}  Rxg3 {[%clk 0:00:05]} 37. Kd2 {[%clk 0:00:04]}  Rg2+ {[%clk 0:00:06]} 38. Kc3 {[%clk 0:00:04]}  Ra2 {[%clk 0:00:07]} 39. Kd4 {[%clk 0:00:05]}  Rxa5 {[%clk 0:00:06]} 40. Rg8 {[%clk 0:00:05]}  Kd6 {[%clk 0:00:06]} 41. Rxg7 {[%clk 0:00:04]}  c5+ {[%clk 0:00:06]} 42. Ke3 {[%clk 0:00:05]}  Ra3 {[%clk 0:00:07]} 43. Kf4 {[%clk 0:00:05]}  Rxd3 {[%clk 0:00:07]} 44. Kg5 {[%clk 0:00:06]}  Rg3+ {[%clk 0:00:07]} 45. Kf6 {[%clk 0:00:07]}  Rxg7 {[%clk 0:00:08]} 46. Kxg7 {[%clk 0:00:07]}  Ke5 {[%clk 0:00:08]} 0-1


[Site "https://www.chess.com"]

[Event "Titled Tuesday Blitz April 25 Late 2023"]
[White "O`Gorman, Tom"]
[Black "Fernandez Siles, Luis"]
[WhiteFideId "2508249"]
[BlackFideId "2209420"]
[WhiteElo "2271"]
[BlackElo "2195"]
[Result "0-1"]
[Round "03"]
[TimeControl "180+2"]
[Date "2023.04.25"]
[WhiteClock "0:00:19"]
[BlackClock "0:00:09"]

1. e4 {[%clk 0:03:00]}  c5 {[%clk 0:02:59]} 2. Nf3 {[%clk 0:03:00]}  Nc6 {[%clk 0:02:59]} 3. b3 {[%clk 0:02:59]}  d6 {[%clk 0:02:53]} 4. Bb2 {[%clk 0:02:58]}  e5 {[%clk 0:02:52]} 5. Bb5 {[%clk 0:02:56]}  g6 {[%clk 0:02:52]} 6. O-O {[%clk 0:02:56]}  Bg7 {[%clk 0:02:52]} 7. c3 {[%clk 0:02:51]}  Ne7 {[%clk 0:02:46]} 8. d4 {[%clk 0:02:51]}  O-O {[%clk 0:02:36]} 9. dxc5 {[%clk 0:02:48]}  dxc5 {[%clk 0:02:36]} 10. Nbd2 {[%clk 0:02:46]}  a6 {[%clk 0:02:30]} 11. Be2 {[%clk 0:02:44]}  b5 {[%clk 0:02:10]} 12. a4 {[%clk 0:02:44]}  Rb8 {[%clk 0:02:10]} 13. axb5 {[%clk 0:02:41]}  axb5 {[%clk 0:02:11]} 14. h3 {[%clk 0:02:35]}  h6 {[%clk 0:02:04]} 15. Re1 {[%clk 0:02:33]}  Be6 {[%clk 0:01:59]} 16. Qc2 {[%clk 0:02:32]}  Qc7 {[%clk 0:01:41]} 17. Nf1 {[%clk 0:02:32]}  b4 {[%clk 0:01:36]} 18. c4 {[%clk 0:02:15]}  Rfd8 {[%clk 0:01:21]} 19. Ne3 {[%clk 0:02:13]}  Nd4 {[%clk 0:01:21]} 20. Nxd4 {[%clk 0:02:08]}  cxd4 {[%clk 0:01:17]} 21. Nd1 {[%clk 0:01:51]}  Qc6 {[%clk 0:00:56]} 22. Bc1 {[%clk 0:01:47]}  Ra8 {[%clk 0:00:55]} 23. Rxa8 {[%clk 0:01:40]}  Rxa8 {[%clk 0:00:56]} 24. Bd2 {[%clk 0:01:39]}  Qc5 {[%clk 0:00:49]} 25. Nb2 {[%clk 0:01:39]}  Nc6 {[%clk 0:00:49]} 26. Nd3 {[%clk 0:01:38]}  Qb6 {[%clk 0:00:46]} 27. Qb2 {[%clk 0:01:36]}  f6 {[%clk 0:00:39]} 28. Ra1 {[%clk 0:01:35]}  Ra5 {[%clk 0:00:36]} 29. Ra2 {[%clk 0:01:33]}  Bf8 {[%clk 0:00:34]} 30. Qa1 {[%clk 0:01:32]}  Ra3 {[%clk 0:00:24]} 31. Bd1 {[%clk 0:01:04]}  h5 {[%clk 0:00:23]} 32. Bc1 {[%clk 0:01:01]}  Rxa2 {[%clk 0:00:22]} 33. Qxa2 {[%clk 0:01:01]}  f5 {[%clk 0:00:22]} 34. Bf3 {[%clk 0:01:00]}  f4 {[%clk 0:00:21]} 35. Bd2 {[%clk 0:00:54]}  Qa5 {[%clk 0:00:16]} 36. Qxa5 {[%clk 0:00:33]}  Nxa5 {[%clk 0:00:17]} 37. Bd1 {[%clk 0:00:29]}  Nc6 {[%clk 0:00:15]} 38. Kh2 {[%clk 0:00:29]}  Bd6 {[%clk 0:00:15]} 39. g3 {[%clk 0:00:29]}  g5 {[%clk 0:00:14]} 40. Bxh5 {[%clk 0:00:27]}  Kf8 {[%clk 0:00:13]} 41. Bd1 {[%clk 0:00:27]}  Kg7 {[%clk 0:00:13]} 42. h4 {[%clk 0:00:26]}  Kg6 {[%clk 0:00:11]} 43. hxg5 {[%clk 0:00:25]}  Kxg5 {[%clk 0:00:12]} 44. gxf4+ {[%clk 0:00:26]}  exf4 {[%clk 0:00:12]} 45. Kg2 {[%clk 0:00:26]}  Bg4 {[%clk 0:00:12]} 46. Bxg4 {[%clk 0:00:20]}  Kxg4 {[%clk 0:00:13]} 47. f3+ {[%clk 0:00:20]}  Kg5 {[%clk 0:00:13]} 48. Kf2 {[%clk 0:00:21]}  Ne5 {[%clk 0:00:10]} 49. Nxe5 {[%clk 0:00:21]}  Bxe5 {[%clk 0:00:10]} 50. Bxb4 {[%clk 0:00:21]}  d3 {[%clk 0:00:09]} 51. Bd2 {[%clk 0:00:21]}  Bd4+ {[%clk 0:00:09]} 52. Kg2 {[%clk 0:00:22]}  Be3 {[%clk 0:00:10]} 53. Bxe3 {[%clk 0:00:19]}  fxe3 {[%clk 0:00:09]} 54. Kf1 {[%clk 0:00:20]}  Kf4 {[%clk 0:00:09]} 55. c5 {[%clk 0:00:20]}  Kxf3 {[%clk 0:00:09]} 56. c6 {[%clk 0:00:20]}  d2 {[%clk 0:00:09]} 57. c7 {[%clk 0:00:19]}  d1=Q# {[%clk 0:00:09]} 0-1


[Site "https://www.chess.com"]

[Event "Titled Tuesday Blitz April 25 Late 2023"]
[White "Flynn, Jacob"]
[Black "Banzea, Alexandru-Bogdan"]
[WhiteFideId "2509393"]
[BlackFideId "1232622"]
[WhiteElo "2053"]
[BlackElo "2294"]
[Result "1/2-1/2"]
[Round "03"]
[TimeControl "180+2"]
[Date "2023.04.25"]
[WhiteClock "0:01:33"]
[BlackClock "0:00:19"]

1. d4 {[%clk 0:03:00]}  d5 {[%clk 0:02:58]} 2. c4 {[%clk 0:03:01]}  c6 {[%clk 0:02:58]} 3. Nf3 {[%clk 0:03:01]}  Nf6 {[%clk 0:02:58]} 4. g3 {[%clk 0:03:02]}  Bf5 {[%clk 0:02:58]} 5. Bg2 {[%clk 0:03:02]}  e6 {[%clk 0:02:58]} 6. O-O {[%clk 0:03:02]}  Nbd7 {[%clk 0:02:59]} 7. Nc3 {[%clk 0:03:02]}  Bd6 {[%clk 0:02:57]} 8. Qb3 {[%clk 0:03:01]}  Rb8 {[%clk 0:02:40]} 9. Nh4 {[%clk 0:03:01]}  Bg6 {[%clk 0:02:23]} 10. Nxg6 {[%clk 0:02:59]}  hxg6 {[%clk 0:02:24]} 11. e4 {[%clk 0:02:58]}  dxe4 {[%clk 0:02:23]} 12. Nxe4 {[%clk 0:02:57]}  Nxe4 {[%clk 0:02:23]} 13. Bxe4 {[%clk 0:02:57]}  Nf6 {[%clk 0:02:00]} 14. Bf3 {[%clk 0:02:52]}  O-O {[%clk 0:01:51]} 15. Be3 {[%clk 0:02:48]}  Qe7 {[%clk 0:01:31]} 16. Rad1 {[%clk 0:02:46]}  Rfc8 {[%clk 0:01:13]} 17. Kg2 {[%clk 0:02:45]}  b5 {[%clk 0:01:13]} 18. Rd2 {[%clk 0:02:37]}  bxc4 {[%clk 0:01:13]} 19. Qxc4 {[%clk 0:02:37]}  Nd5 {[%clk 0:01:13]} 20. Qd3 {[%clk 0:02:25]}  c5 {[%clk 0:00:55]} 21. Bxd5 {[%clk 0:02:17]}  exd5 {[%clk 0:00:56]} 22. dxc5 {[%clk 0:02:17]}  Bxc5 {[%clk 0:00:57]} 23. Bxc5 {[%clk 0:02:16]}  Rxc5 {[%clk 0:00:56]} 24. Re2 {[%clk 0:02:12]}  Qf6 {[%clk 0:00:48]} 25. Qa3 {[%clk 0:02:03]}  Rcb5 {[%clk 0:00:36]} 26. Qxa7 {[%clk 0:01:51]}  Rxb2 {[%clk 0:00:33]} 27. Rfe1 {[%clk 0:01:49]}  Kh7 {[%clk 0:00:26]} 28. a4 {[%clk 0:01:44]}  R8b3 {[%clk 0:00:21]} 29. Rxb2 {[%clk 0:01:37]}  Qf3+ {[%clk 0:00:21]} 30. Kg1 {[%clk 0:01:35]}  Rxb2 {[%clk 0:00:22]} 31. Qe3 {[%clk 0:01:33]}  Qxe3 {[%clk 0:00:19]} 32. Rxe3 {[%clk 0:01:33]}  Ra2 {[%clk 0:00:19]} 33. Rd3 {[%clk 0:01:32]}  Rxa4 {[%clk 0:00:19]} 34. Rxd5 {[%clk 0:01:33]} 1/2-1/2


[Site "https://www.chess.com"]

[Event "Titled Tuesday Blitz April 25 Late 2023"]
[White "Tarlabasi, Emirhan"]
[Black "Gurevich, Dmitry"]
[WhiteFideId "6350275"]
[BlackFideId "2000407"]
[WhiteElo "2200"]
[BlackElo "2506"]
[Result "0-1"]
[Round "03"]
[TimeControl "180+2"]
[Date "2023.04.25"]
[WhiteClock "0:00:08"]
[BlackClock "0:00:15"]

1. c4 {[%clk 0:03:00]}  c5 {[%clk 0:02:57]} 2. Nc3 {[%clk 0:03:00]}  b6 {[%clk 0:02:56]} 3. Nf3 {[%clk 0:03:00]}  Bb7 {[%clk 0:02:56]} 4. d4 {[%clk 0:03:00]}  cxd4 {[%clk 0:02:56]} 5. Nxd4 {[%clk 0:02:59]}  Nf6 {[%clk 0:02:56]} 6. b3 {[%clk 0:02:54]}  g6 {[%clk 0:02:54]} 7. Bb2 {[%clk 0:02:54]}  Bg7 {[%clk 0:02:54]} 8. e3 {[%clk 0:02:35]}  O-O {[%clk 0:02:53]} 9. f3 {[%clk 0:02:31]}  d5 {[%clk 0:02:47]} 10. cxd5 {[%clk 0:02:20]}  Nxd5 {[%clk 0:02:47]} 11. Nxd5 {[%clk 0:02:17]}  Qxd5 {[%clk 0:02:46]} 12. Bc4 {[%clk 0:02:14]}  Qa5+ {[%clk 0:02:40]} 13. Qd2 {[%clk 0:02:09]}  Qxd2+ {[%clk 0:02:40]} 14. Kxd2 {[%clk 0:02:09]}  a6 {[%clk 0:02:33]} 15. Rac1 {[%clk 0:02:04]}  Rd8 {[%clk 0:02:30]} 16. Ke2 {[%clk 0:02:00]}  Nd7 {[%clk 0:02:26]} 17. Rhd1 {[%clk 0:01:52]}  Ne5 {[%clk 0:02:26]} 18. Kf2 {[%clk 0:01:46]}  Nxc4 {[%clk 0:02:24]} 19. bxc4 {[%clk 0:01:41]}  Rac8 {[%clk 0:02:20]} 20. Ba3 {[%clk 0:01:31]}  e6 {[%clk 0:02:13]} 21. Nb3 {[%clk 0:01:29]}  Bf6 {[%clk 0:02:04]} 22. c5 {[%clk 0:01:27]}  bxc5 {[%clk 0:01:54]} 23. Rxd8+ {[%clk 0:01:24]}  Rxd8 {[%clk 0:01:53]} 24. Nxc5 {[%clk 0:01:23]}  Bd5 {[%clk 0:01:51]} 25. Rc2 {[%clk 0:00:59]}  Rc8 {[%clk 0:01:42]} 26. e4 {[%clk 0:00:41]}  Bd4+ {[%clk 0:01:36]} 27. Ke2 {[%clk 0:00:33]}  Bc6 {[%clk 0:01:30]} 28. Nb3 {[%clk 0:00:21]}  Bb5+ {[%clk 0:01:27]} 29. Kd1 {[%clk 0:00:18]}  Rxc2 {[%clk 0:01:25]} 30. Kxc2 {[%clk 0:00:19]}  Bg1 {[%clk 0:01:13]} 31. Nc5 {[%clk 0:00:14]}  Bxh2 {[%clk 0:01:08]} 32. Bb2 {[%clk 0:00:08]}  h5 {[%clk 0:01:06]} 33. Bd4 {[%clk 0:00:06]}  h4 {[%clk 0:00:57]} 34. Nd3 {[%clk 0:00:02]}  f5 {[%clk 0:00:49]} 35. Kd2 {[%clk 0:00:02]}  fxe4 {[%clk 0:00:47]} 36. fxe4 {[%clk 0:00:03]}  Bxd3 {[%clk 0:00:39]} 37. Kxd3 {[%clk 0:00:03]}  g5 {[%clk 0:00:39]} 38. Bc5 {[%clk 0:00:02]}  g4 {[%clk 0:00:38]} 39. Ke2 {[%clk 0:00:03]}  Kf7 {[%clk 0:00:36]} 40. Bb6 {[%clk 0:00:03]}  Bd6 {[%clk 0:00:31]} 41. Bd8 {[%clk 0:00:03]}  h3 {[%clk 0:00:30]} 42. gxh3 {[%clk 0:00:02]}  gxh3 {[%clk 0:00:30]} 43. Kf3 {[%clk 0:00:03]}  Ke8 {[%clk 0:00:28]} 44. Bg5 {[%clk 0:00:03]}  Kd7 {[%clk 0:00:28]} 45. Be3 {[%clk 0:00:01]}  Kc6 {[%clk 0:00:27]} 46. a4 {[%clk 0:00:02]}  Bc7 {[%clk 0:00:24]} 47. Bf2 {[%clk 0:00:02]}  Be5 {[%clk 0:00:23]} 48. Be3 {[%clk 0:00:02]}  Kd7 {[%clk 0:00:20]} 49. Bf2 {[%clk 0:00:02]}  Ke7 {[%clk 0:00:20]} 50. Be3 {[%clk 0:00:02]}  Kf6 {[%clk 0:00:20]} 51. Bf2 {[%clk 0:00:03]}  Kg6 {[%clk 0:00:20]} 52. Be3 {[%clk 0:00:04]}  Kh5 {[%clk 0:00:20]} 53. Bf2 {[%clk 0:00:04]}  h2 {[%clk 0:00:20]} 54. Kg2 {[%clk 0:00:05]}  Kg4 {[%clk 0:00:20]} 55. Be3 {[%clk 0:00:05]}  h1=Q+ {[%clk 0:00:18]} 56. Kxh1 {[%clk 0:00:05]}  Kf3 {[%clk 0:00:18]} 57. Ba7 {[%clk 0:00:06]}  Kxe4 {[%clk 0:00:19]} 58. Kg2 {[%clk 0:00:07]}  Kd3 {[%clk 0:00:19]} 59. Kf3 {[%clk 0:00:07]}  Bd4 {[%clk 0:00:19]} 60. Bb8 {[%clk 0:00:06]}  e5 {[%clk 0:00:19]} 61. Kg2 {[%clk 0:00:07]}  e4 {[%clk 0:00:18]} 62. Kf1 {[%clk 0:00:08]}  e3 {[%clk 0:00:18]} 63. Bf4 {[%clk 0:00:08]}  e2+ {[%clk 0:00:17]} 64. Kg2 {[%clk 0:00:08]}  e1=Q {[%clk 0:00:15]} 0-1


[Site "https://www.chess.com"]